fUST/lending_fUST_20240605
["ID","MTS","AMOUNT","RATE_DAILY","PERIOD"]
[328596268,1717589444054,-331.46084678,0.00021998,2]
[328596269,1717589444066,-373.92157054,0.00021998,2]
[328596270,1717589444075,-371.42094807,0.00021998,2]
[328596271,1717589444084,-411.23565882,0.00021998,2]
[328596272,1717589444093,-9389.20257138,0.00021998,2]
[328596273,1717589444103,-269.07470714,0.00021998,2]
[328596274,1717589444113,-2684.83597904,0.00021998,2]
[328596275,1717589444123,-1909.96781027,0.00021998,2]
[328596276,1717589444132,-809.77075001,0.00021998,2]
[328596277,1717589444142,-172.3801151,0.00021999,2]
[328596278,1717589444152,-2640.4246397,0.00021999,2]
[328596279,1717589444161,-5548.10720639,0.00022,7]
[328596280,1717589444171,-7737.18888362,0.00022,7]
[328596281,1717589444180,-29018.00776168,0.00022,2]
[328596282,1717589444286,-212.77687103,0.00021998,2]
[328596283,1717589444296,-642.22312897,0.00022,2]
[328596284,1717589444307,-1324.34330359,0.00022,2]
[328596320,1717589446576,-1166.17,0.00021917,2]
[328596322,1717589446585,-203.35493614,0.00021998,2]
[328596324,1717589446594,-11365.95240278,0.00022,2]
[328596326,1717589446609,-3741.15649222,0.00022,2]
[328596459,1717589716985,2182.94566213,0.0001,2]
[328596460,1717590152012,205.5,0.00028,120]
[328596475,1717590452156,302.73262901,9.999e-05,2]
[328596476,1717590487705,212.77687103,9.999e-05,2]
[328596535,1717590632690,-1099.91705711,0.00015,2]
[328596536,1717590632699,-332.89399587,0.00016577,2]
[328596538,1717590632710,-3825.31539931,0.00016577,2]
[328596539,1717590632720,-945.17260851,0.00016675,2]
[328596540,1717590632729,-2557.9422314,0.00016677,2]
[328596542,1717590632738,-242.220025,0.00017064,2]
[328596543,1717590632747,-1955.38935795,0.00017815,2]
[328596545,1717590632757,-171.93362009,0.00017815,2]
[328596546,1717590632766,-32252.67761107,0.00017914,2]
[328596554,1717590639088,-1514.21372609,0.00017914,2]
[328596604,1717590644168,-4275.0,0.00017914,2]
[328596605,1717590644261,-21497.54010031,0.00017914,2]
[328596606,1717590644270,-24900.0,0.00017915,2]
[328596607,1717590644281,-1490.38077283,0.00018832,2]
[328596608,1717590644291,-359.34864815,0.000189,2]
[328596609,1717590644300,-1955.38935794,0.00019113,2]
[328596610,1717590644309,-276.29,0.00019158,3]
[328596611,1717590644321,-552.59,0.00019168,3]
[328596612,1717590644330,-155.58398392,0.00019178,2]
[328596613,1717590644338,-500.0,0.00019178,2]
[328596614,1717590644347,-500.0,0.00019178,2]
[328596615,1717590644356,-500.0,0.00019178,2]
[328596616,1717590644365,-500.0,0.00019178,2]
[328596617,1717590644374,-500.0,0.00019178,2]
[328596618,1717590644384,-500.0,0.00019178,2]
[328596619,1717590644393,-500.0,0.00019178,2]
[328596620,1717590644403,-500.0,0.00019178,2]
[328596621,1717590644412,-500.0,0.00019178,2]
[328596622,1717590644422,-500.0,0.00019178,2]
[328596623,1717590644432,-500.0,0.00019178,2]
[328596624,1717590644442,-500.0,0.00019178,2]
[328596625,1717590644451,-500.0,0.00019178,2]
[328596626,1717590644460,-500.0,0.00019178,2]
[328596627,1717590644470,-500.0,0.00019178,2]
[328596628,1717590644480,-500.0,0.00019178,2]
[328596629,1717590644490,-500.0,0.00019178,2]
[328596630,1717590644499,-500.0,0.00019178,2]
[328596631,1717590644510,-500.0,0.00019178,2]
[328596632,1717590644520,-500.0,0.00019178,2]
[328596633,1717590644529,-500.0,0.00019178,2]
[328596634,1717590644539,-500.0,0.00019178,2]
[328596635,1717590644549,-650.0,0.00019178,2]
[328596636,1717590644559,-500.0,0.00019178,2]
[328596637,1717590644570,-500.0,0.00019178,2]
[328596638,1717590644579,-184.77263385,0.00019178,2]
[328596639,1717590644588,-500.0,0.00019178,2]
[328596640,1717590644597,-500.0,0.00019178,2]
[328596641,1717590644606,-500.0,0.00019178,2]
[328596642,1717590644616,-500.0,0.00019178,2]
[328596643,1717590644626,-198.40030123,0.00019178,2]
[328596644,1717590644636,-500.0,0.00019178,2]
[328596645,1717590644645,-195.59961382,0.00019178,2]
[328596646,1717590644655,-412.49926476,0.00019178,2]
[328596647,1717590644664,-500.0,0.00019178,2]
[328596648,1717590644675,-322.30012143,0.00019178,2]
[328596649,1717590644684,-500.0,0.00019178,2]
[328596650,1717590644693,-500.0,0.00019178,2]
[328596651,1717590644703,-497.20432968,0.00019178,2]
[328596652,1717590644711,-500.0,0.00019178,2]
[328596653,1717590644721,-500.0,0.00019178,2]
[328596654,1717590644730,-500.0,0.00019178,2]
[328596655,1717590644739,-469.74054516,0.00019178,2]
[328596656,1717590644749,-500.0,0.00019178,2]
[328596657,1717590644759,-500.0,0.00019178,2]
[328596658,1717590644768,-500.0,0.00019178,2]
[328596659,1717590644777,-500.0,0.00019178,2]
[328596660,1717590644786,-500.0,0.00019178,2]
[328596661,1717590644795,-347.34629984,0.00019178,2]
[328596662,1717590644804,-500.0,0.00019178,2]
[328596663,1717590644814,-500.0,0.00019178,2]
[328596664,1717590644824,-500.0,0.00019178,2]
[328596665,1717590644833,-500.0,0.00019178,2]
[328596666,1717590644842,-500.0,0.00019178,2]
[328596667,1717590644852,-500.0,0.00019178,2]
[328596668,1717590644864,-500.0,0.00019178,2]
[328596669,1717590644875,-500.0,0.00019178,2]
[328596670,1717590644885,-500.0,0.00019178,2]
[328596671,1717590644894,-500.0,0.00019178,2]
[328596672,1717590644904,-500.0,0.00019178,2]
[328596673,1717590644913,-500.0,0.00019178,2]
[328596674,1717590644922,-614.17728468,0.00019178,2]
[328596675,1717590644931,-169.644612,0.00019178,2]
[328596676,1717590644940,-171.93362009,0.00019857,2]
[328596677,1717590644950,-1955.38935794,0.00020411,2]
[328596678,1717590644960,-552.58,0.00020528,3]
[328596679,1717590644970,-1105.18,0.00020538,3]
[328596680,1717590644979,-194.4,0.00020728,3]
[328596681,1717590644988,-292.2198683,0.00020978,2]
[328596682,1717590645001,-292.2198683,0.00020978,2]
[328596683,1717590645010,-646.6699824,0.0002123,2]
[328596684,1717590645021,-205.1119034,0.0002126,2]
[328596685,1717590645031,-205.1119034,0.0002126,2]
[328596686,1717590645041,-357.27870495,0.0002126,2]
[328596687,1717590645054,-228.48957395,0.0002126,2]
[328596688,1717590645063,-205.1119034,0.0002126,2]
[328596689,1717590645075,-584.1474529,0.0002126,2]
[328596690,1717590645085,-205.1119034,0.0002126,2]
[328596691,1717590645095,-277.17349415,0.0002126,2]
[328596692,1717590645106,-132.03321425,0.0002126,2]
[328596693,1717590645117,-292.2198683,0.0002126,2]
[328596694,1717590645126,-292.2198683,0.0002126,2]
[328596695,1717590645136,-292.2198683,0.0002126,2]
[328596696,1717590645146,-292.2198683,0.0002126,2]
[328596697,1717590645155,-292.2198683,0.0002126,2]
[328596698,1717590645164,-292.2198683,0.0002126,2]
[328596699,1717590645174,-292.2198683,0.0002126,2]
[328596700,1717590645183,-292.2198683,0.0002126,2]
[328596701,1717590645192,-292.2198683,0.0002126,2]
[328596702,1717590645201,-189.3753101,0.0002126,2]
[328596703,1717590645211,-292.2198683,0.00021378,2]
[328596704,1717590645220,-194.4,0.00021434,5]
[328596705,1717590645229,-828.91,0.0002149,3]
[328596706,1717590645238,-292.2198683,0.000215,2]
[328596707,1717590645248,-205.1119034,0.000215,2]
[328596708,1717590645258,-2573.0,0.000215,3]
[328596709,1717590645268,-289.9663975,0.00021578,2]
[328596710,1717590645278,-4235.50878984,0.00021673,2]
[328596711,1717590645287,-643.8563675,0.000217,2]
[328596712,1717590645296,-1955.38935794,0.00021709,2]
[328596713,1717590645307,-2000.0,0.000218,2]
[328596714,1717590645317,-2000.0,0.000218,3]
[328596715,1717590645326,-2000.0,0.000218,4]
[328596716,1717590645335,-2000.0,0.000218,5]
[328596717,1717590645344,-292.2198683,0.000218,2]
[328596718,1717590645353,-153.0,0.000218,2]
[328596719,1717590645362,-239.82509066,0.00021863,2]
[328596720,1717590645371,-383.64863132,0.00021898,2]
[328596721,1717590645381,-171.93362009,0.00021899,2]
[328596722,1717590645390,-150.0,0.000219,2]
[328596723,1717590645400,-2774.05360319,0.00021917,7]
[328596724,1717590645409,-4763.22983002,0.00021917,7]
[328596725,1717590645419,-585.26,0.00021917,2]
[328596726,1717590645428,-500.0,0.00021917,2]
[328596727,1717590645437,-500.0,0.00021917,2]
[328596728,1717590645446,-359.91556595,0.00021917,2]
[328596729,1717590645455,-500.0,0.00021917,2]
[328596730,1717590645465,-500.0,0.00021917,2]
[328596731,1717590645473,-500.0,0.00021917,2]
[328596732,1717590645484,-500.0,0.00021917,2]
[328596733,1717590645493,-500.0,0.00021917,2]
[328596734,1717590645502,-265.49606247,0.00021917,2]
[328596735,1717590645511,-500.0,0.00021917,2]
[328596736,1717590645520,-500.0,0.00021917,2]
[328596737,1717590645529,-500.0,0.00021917,2]
[328596738,1717590645538,-500.0,0.00021917,2]
[328596739,1717590645547,-500.0,0.00021917,2]
[328596740,1717590645556,-500.0,0.00021917,2]
[328596741,1717590645565,-443.8126277,0.00021917,2]
[328596742,1717590645574,-500.0,0.00021917,2]
[328596743,1717590645583,-500.0,0.00021917,2]
[328596744,1717590645592,-608.73,0.00021917,2]
[328596745,1717590645601,-500.0,0.00021917,2]
[328596746,1717590645610,-524.4240223,0.00021917,2]
[328596747,1717590645619,-576.51,0.00021917,2]
[328596748,1717590645627,-811.23,0.00021917,2]
[328596749,1717590645636,-500.0,0.00021917,2]
[328596750,1717590645645,-500.0,0.00021917,2]
[328596751,1717590645655,-500.0,0.00021917,2]
[328596752,1717590645665,-500.0,0.00021917,2]
[328596753,1717590645674,-500.0,0.00021917,2]
[328596754,1717590645684,-500.0,0.00021917,2]
[328596755,1717590645693,-500.0,0.00021917,2]
[328596756,1717590645702,-500.0,0.00021917,2]
[328596757,1717590645712,-500.0,0.00021917,2]
[328596758,1717590645722,-502.11,0.00021917,2]
[328596759,1717590645731,-500.0,0.00021917,2]
[328596760,1717590645741,-500.0,0.00021917,2]
[328596761,1717590645750,-500.0,0.00021917,2]
[328596762,1717590645760,-500.0,0.00021917,2]
[328596763,1717590645770,-890.5,0.00021917,2]
[328596764,1717590645779,-608.14,0.00021917,2]
[328596765,1717590645788,-500.0,0.00021917,2]
[328596766,1717590645798,-500.0,0.00021917,2]
[328596767,1717590645806,-500.0,0.00021917,2]
[328596768,1717590645816,-514.82,0.00021917,2]
[328596769,1717590645826,-500.0,0.00021917,2]
[328596770,1717590645836,-582.58,0.00021917,2]
[328596771,1717590645845,-500.0,0.00021917,2]
[328596772,1717590645854,-157.13092558,0.00021917,2]
[328596773,1717590645863,-500.0,0.00021917,2]
[328596774,1717590645873,-645.99,0.00021917,2]
[328596775,1717590645882,-500.0,0.00021917,2]
[328596776,1717590645892,-500.0,0.00021917,2]
[328596777,1717590645901,-500.0,0.00021917,2]
[328596778,1717590645910,-500.0,0.00021917,2]
[328596779,1717590645919,-500.0,0.00021917,2]
[328596780,1717590645928,-500.0,0.00021917,2]
[328596781,1717590645938,-500.0,0.00021917,2]
[328596782,1717590645946,-500.0,0.00021917,2]
[328596783,1717590645956,-500.0,0.00021917,2]
[328596784,1717590645965,-465.47624809,0.00021917,2]
[328596785,1717590645974,-500.0,0.00021917,2]
[328596786,1717590645983,-500.0,0.00021917,2]
[328596787,1717590645992,-552.83,0.00021917,2]
[328596788,1717590646005,-500.0,0.00021917,2]
[328596789,1717590646015,-500.0,0.00021917,2]
[328596790,1717590646024,-522.1743913,0.00021917,2]
[328596792,1717590646035,-964.85,0.00021917,2]
[328596793,1717590646045,-500.0,0.00021917,2]
[328596794,1717590646055,-500.0,0.00021917,2]
[328596795,1717590646064,-500.0,0.00021917,2]
[328596796,1717590646075,-500.0,0.00021917,2]
[328596797,1717590646085,-500.0,0.00021917,2]
[328596798,1717590646095,-500.0,0.00021917,2]
[328596799,1717590646104,-500.0,0.00021917,2]
[328596800,1717590646113,-500.0,0.00021917,2]
[328596802,1717590646122,-500.0,0.00021917,2]
[328596804,1717590646131,-500.0,0.00021917,2]
[328596806,1717590646140,-386.27222895,0.00021917,2]
[328596807,1717590646149,-500.0,0.00021917,2]
[328596808,1717590646160,-500.0,0.00021917,2]
[328596809,1717590646169,-500.0,0.00021917,2]
[328596810,1717590646179,-500.0,0.00021917,2]
[328596811,1717590646188,-500.0,0.00021917,2]
[328596812,1717590646199,-593.68,0.00021917,2]
[328596813,1717590646208,-500.0,0.00021917,2]
[328596814,1717590646219,-283.7712947,0.00021917,2]
[328596815,1717590646229,-1000.0,0.00021917,2]
[328596816,1717590646237,-500.0,0.00021917,2]
[328596817,1717590646248,-500.0,0.00021917,2]
[328596818,1717590646258,-500.0,0.00021917,2]
[328596819,1717590646268,-500.0,0.00021917,2]
[328596820,1717590646277,-500.0,0.00021917,2]
[328596821,1717590646286,-500.0,0.00021917,2]
[328596822,1717590646296,-831.9,0.00021917,2]
[328596823,1717590646305,-500.0,0.00021917,2]
[328596824,1717590646314,-500.0,0.00021917,2]
[328596825,1717590646324,-500.0,0.00021917,2]
[328596827,1717590646334,-639.04,0.00021917,2]
[328596829,1717590646344,-345.08820475,0.00021917,2]
[328596831,1717590646353,-500.0,0.00021917,2]
[328596833,1717590646362,-500.0,0.00021917,2]
[328596834,1717590646372,-987.67,0.00021917,2]
[328596835,1717590646382,-500.0,0.00021917,2]
[328596836,1717590646391,-500.0,0.00021917,2]
[328596837,1717590646400,-532.27975796,0.00021917,2]
[328596838,1717590646409,-500.0,0.00021917,2]
[328596839,1717590646419,-500.0,0.00021917,2]
[328596840,1717590646428,-500.0,0.00021917,2]
[328596841,1717590646437,-500.0,0.00021917,2]
[328596842,1717590646446,-500.0,0.00021917,2]
[328596843,1717590646456,-500.0,0.00021917,2]
[328596844,1717590646465,-500.0,0.00021917,2]
[328596845,1717590646475,-500.0,0.00021917,2]
[328596846,1717590646485,-500.0,0.00021917,2]
[328596847,1717590646494,-822.12,0.00021917,2]
[328596848,1717590646504,-1117.58,0.00021917,2]
[328596849,1717590646513,-1039.97,0.00021917,2]
[328596850,1717590646522,-500.0,0.00021917,2]
[328596851,1717590646531,-500.0,0.00021917,2]
[328596852,1717590646541,-500.0,0.00021917,2]
[328596853,1717590646551,-500.0,0.00021917,2]
[328596855,1717590646560,-500.0,0.00021917,2]
[328596856,1717590646569,-1461.2,0.00021917,2]
[328596857,1717590646578,-631.21,0.00021917,2]
[328596858,1717590646588,-500.0,0.00021917,2]
[328596859,1717590646598,-500.0,0.00021917,2]
[328596860,1717590646607,-3440.86,0.00021917,2]
[328596861,1717590646617,-500.0,0.00021917,2]
[328596862,1717590646626,-500.0,0.00021917,2]
[328596863,1717590646635,-1823.68,0.00021917,2]
[328596864,1717590646645,-1786.07,0.00021917,2]
[328596865,1717590646654,-383.03682061,0.00021917,2]
[328596866,1717590646663,-500.0,0.00021917,2]
[328596868,1717590646673,-500.0,0.00021917,2]
[328596870,1717590646683,-404.16,0.00021917,2]
[328596872,1717590646692,-669.73,0.00021917,2]
[328596874,1717590646701,-690.65,0.00021917,2]
[328596877,1717590646711,-500.0,0.00021917,2]
[328596879,1717590646721,-774.09,0.00021917,2]
[328596881,1717590646730,-500.0,0.00021917,2]
[328596883,1717590646740,-500.0,0.00021917,2]
[328596885,1717590646750,-500.0,0.00021917,2]
[328596887,1717590646759,-1928.18,0.00021917,2]
[328596889,1717590646768,-164.85842101,0.00021917,2]
[328596891,1717590646778,-533.87,0.00021917,2]
[328596893,1717590646787,-500.0,0.00021917,2]
[328596895,1717590646797,-500.0,0.00021917,2]
[328596897,1717590646806,-4407.39,0.00021917,2]
[328596899,1717590646815,-880.0,0.00021917,2]
[328596901,1717590646827,-500.0,0.00021917,2]
[328596903,1717590646836,-733.49,0.00021917,2]
[328596905,1717590646844,-1520.53,0.00021917,2]
[328596907,1717590646854,-500.0,0.00021917,2]
[328596909,1717590646864,-500.0,0.00021917,2]
[328596911,1717590646874,-500.0,0.00021917,2]
[328596913,1717590646883,-3938.09,0.00021917,2]
[328596915,1717590646892,-2120.09,0.00021917,2]
[328596917,1717590646901,-552.45,0.00021917,2]
[328596919,1717590646910,-511.56,0.00021917,2]
[328596921,1717590646920,-500.0,0.00021917,2]
[328596923,1717590646929,-500.0,0.00021917,2]
[328596925,1717590646938,-677.81,0.00021917,2]
[328596927,1717590646947,-500.0,0.00021917,2]
[328596929,1717590646956,-500.0,0.00021917,2]
[328596931,1717590646965,-500.0,0.00021917,2]
[328596932,1717590646975,-892.07,0.00021917,2]
[328596933,1717590646984,-500.0,0.00021917,2]
[328596934,1717590646995,-500.0,0.00021917,2]
[328596935,1717590647008,-166.666666,0.00021918,2]
[328596936,1717590647017,-187.58397023,0.00021998,2]
[328596938,1717590647026,-1441.26646871,0.00021998,2]
[328596939,1717590647037,-284.3738385,0.00021998,2]
[328596941,1717590647046,-887.87225272,0.00021998,2]
[328596947,1717590647278,-18407.84322329,0.00021998,2]
[328596948,1717590647289,-1909.96781027,0.00021998,2]
[328596949,1717590647299,-2640.8656152,0.00021998,2]
[328596950,1717590647308,-1982.29671203,0.00021998,2]
[328596951,1717590647320,-6705.02552135,0.00021998,2]
[328596952,1717590647332,-2877.67069535,0.00021998,2]
[328596953,1717590647341,-151.0,0.00021998,2]
[328596954,1717590647351,-302.47161892,0.00021998,2]
[328596955,1717590647361,-151.0,0.00021998,2]
[328596956,1717590647370,-424.75768573,0.00021999,2]
[328596957,1717590647382,-283.72987092,0.00021999,2]
[328596958,1717590647391,-150.50012903,0.00021999,2]
[328596959,1717590647402,-18337.09508667,0.00021999,2]
[328596960,1717590647414,-1590.14548422,0.00021999,2]
[328596961,1717590647426,-6012.51357075,0.00021999,2]
[328596962,1717590647442,-633.49232237,0.00021998,2]
[328596963,1717590647451,-6479.71552844,0.00021999,2]
[328596964,1717590647465,-1475.78145314,0.00021999,2]
[328596965,1717590647475,-2358.09123893,0.00021999,2]
[328596966,1717590647504,-5655.58893742,0.00021999,2]
[328596967,1717590647515,-151.0,0.00021999,2]
[328596968,1717590647525,-242.946892,0.00021999,2]
[328596969,1717590647534,-3798.68417058,0.00022,2]
[328597018,1717591028216,1000.0,0.00012,7]
[328597047,1717591207089,-3057.80420169,0.000125,2]
[328597048,1717591207110,-9742.19579831,0.00017898,2]
[328597068,1717591429083,3635.51538076,0.00029831,40]
[328597069,1717591451995,1125.30535855,0.00029831,40]
[328597071,1717591618440,41421.1338011,0.0001,10]
[328597172,1717591831966,-239.56576543,0.000189,2]
[328597173,1717591831977,-260.12980989,0.00019193,3]
[328597174,1717591831987,-30.98553937,0.00019293,2]
[328597175,1717591832005,-135.63809863,0.00019293,2]
[328597176,1717591832015,-197.4362,0.00019324,2]
[328597177,1717591832030,-24900.0,0.00019509,2]
[328597178,1717591832040,-1715.2985261,0.00019516,2]
[328597179,1717591832049,-393.31911132,0.000203,2]
[328597181,1717591832059,-175.3,0.0002068,3]
[328597182,1717591832068,-482.29,0.0002092,3]
[328597184,1717591832077,-500.0,0.00020926,2]
[328597186,1717591832086,-500.0,0.00020926,2]
[328597187,1717591832095,-500.0,0.00020926,2]
[328597188,1717591832104,-500.0,0.00020926,2]
[328597189,1717591832114,-500.0,0.00020926,2]
[328597190,1717591832123,-500.0,0.00020926,2]
[328597191,1717591832133,-500.0,0.00020926,2]
[328597192,1717591832143,-500.0,0.00020926,2]
[328597193,1717591832153,-500.0,0.00020926,2]
[328597194,1717591832162,-500.0,0.00020926,2]
[328597195,1717591832172,-500.0,0.00020926,2]
[328597196,1717591832182,-500.0,0.00020926,2]
[328597197,1717591832192,-166.01063571,0.00020926,2]
[328597198,1717591832201,-500.0,0.00020926,2]
[328597199,1717591832211,-500.0,0.00020926,2]
[328597200,1717591832220,-500.0,0.00020926,2]
[328597201,1717591832230,-500.0,0.00020926,2]
[328597202,1717591832240,-500.0,0.00020926,2]
[328597203,1717591832250,-500.0,0.00020926,2]
[328597204,1717591832259,-500.0,0.00020926,2]
[328597205,1717591832270,-500.0,0.00020926,2]
[328597206,1717591832279,-500.0,0.00020926,2]
[328597207,1717591832289,-500.0,0.00020926,2]
[328597208,1717591832298,-500.0,0.00020926,2]
[328597209,1717591832308,-500.0,0.00020926,2]
[328597210,1717591832317,-500.0,0.00020926,2]
[328597211,1717591832328,-500.0,0.00020926,2]
[328597212,1717591832337,-500.0,0.00020926,2]
[328597213,1717591832350,-500.0,0.00020926,2]
[328597214,1717591832359,-500.0,0.00020926,2]
[328597215,1717591832369,-500.0,0.00020926,2]
[328597216,1717591832378,-500.0,0.00020926,2]
[328597217,1717591832388,-500.0,0.00020926,2]
[328597218,1717591832399,-500.0,0.00020926,2]
[328597219,1717591832409,-500.0,0.00020926,2]
[328597220,1717591832419,-500.0,0.00020926,2]
[328597221,1717591832430,-500.0,0.00020926,2]
[328597222,1717591832440,-500.0,0.00020926,2]
[328597223,1717591832450,-500.0,0.00020926,2]
[328597224,1717591832459,-500.0,0.00020926,2]
[328597225,1717591832470,-500.0,0.00020926,2]
[328597226,1717591832479,-500.0,0.00020926,2]
[328597227,1717591832489,-500.0,0.00020926,2]
[328597228,1717591832499,-500.0,0.00020926,2]
[328597229,1717591832508,-500.0,0.00020926,2]
[328597230,1717591832517,-365.0,0.00020926,2]
[328597231,1717591832528,-500.0,0.00020926,2]
[328597232,1717591832540,-500.0,0.00020926,2]
[328597233,1717591832549,-500.0,0.00020926,2]
[328597234,1717591832558,-500.0,0.00020926,2]
[328597235,1717591832568,-500.0,0.00020926,2]
[328597236,1717591832577,-500.0,0.00020926,2]
[328597237,1717591832586,-500.0,0.00020926,2]
[328597238,1717591832595,-500.0,0.00020926,2]
[328597239,1717591832605,-500.0,0.00020926,2]
[328597240,1717591832614,-500.0,0.00020926,2]
[328597241,1717591832623,-500.0,0.00020926,2]
[328597242,1717591832632,-500.0,0.00020926,2]
[328597243,1717591832641,-500.0,0.00020926,2]
[328597244,1717591832650,-235.67617647,0.00020926,2]
[328597453,1717591838414,-184.53178956,0.00020929,2]
[328597455,1717591838425,-500.0,0.00020929,2]
[328597457,1717591838435,-500.0,0.00020929,2]
[328597459,1717591838444,-418.95430044,0.00020929,2]
[328597461,1717591838453,-484.26383474,0.00020929,2]
[328597463,1717591838465,-15.73616526,0.00020929,2]
[328597465,1717591838475,-500.0,0.00020929,2]
[328597467,1717591838484,-500.0,0.00020929,2]
[328597469,1717591838493,-30.09810474,0.00020929,2]
[328597471,1717591838505,-469.90189526,0.00020929,2]
[328597473,1717591838514,-176.78539919,0.00020929,2]
[328597476,1717591838525,-351.2640207,0.00020929,2]
[328597477,1717591838537,-148.7359793,0.00020929,2]
[328597480,1717591838547,-184.8567371,0.00020929,2]
[328597601,1717591841254,-500.0,0.00020925,2]
[328597602,1717591841264,-500.0,0.00020925,2]
[328597603,1717591841274,-500.0,0.00020925,2]
[328597604,1717591841286,-500.0,0.00020925,2]
[328597605,1717591841295,-500.0,0.00020925,2]
[328597606,1717591841305,-500.0,0.00020925,2]
[328597607,1717591841314,-500.0,0.00020925,2]
[328597608,1717591841326,-500.0,0.00020925,2]
[328597609,1717591841336,-500.0,0.00020925,2]
[328597610,1717591841350,-500.0,0.00020925,2]
[328597611,1717591841359,-500.0,0.00020925,2]
[328597612,1717591841369,-500.0,0.00020925,2]
[328597613,1717591841379,-500.0,0.00020925,2]
[328597614,1717591841390,-500.0,0.00020925,2]
[328597615,1717591841399,-476.16408338,0.00020925,2]
[328597616,1717591841432,-114.82842136,0.00020925,2]
[328597617,1717591841442,-500.0,0.00020925,2]
[328597618,1717591841451,-296.96220002,0.00020929,2]
[328597619,1717591841461,-340.1925913,0.00020929,2]
[328597620,1717591841470,-258.86022264,0.00020929,2]
[328597753,1717591843369,-241.13977736,0.00020929,2]
[328597756,1717591843379,-181.13496767,0.00020929,2]
[328597759,1717591843388,-500.0,0.00020929,2]
[328597762,1717591843399,-500.0,0.00020929,2]
[328597765,1717591843408,-534.16441748,0.00020929,2]
[328597768,1717591843417,-500.0,0.00020929,2]
[328597771,1717591843428,-500.0,0.00020929,2]
[328597774,1717591843437,-500.0,0.00020929,2]
[328597777,1717591843446,-500.0,0.00020929,2]
[328597779,1717591843455,-500.0,0.00020929,2]
[328597782,1717591843464,-500.0,0.00020929,2]
[328597785,1717591843474,-363.71873555,0.0002093,2]
[328597822,1717591843647,-39972.41709323,0.0002093,2]
[328597824,1717591843657,-580.42336828,0.00021,2]
[328597826,1717591843666,-205.1119034,0.0002126,2]
[328597827,1717591843676,-310.3700167,0.0002126,2]
[328597829,1717591843685,-410.0517914,0.0002126,2]
[328597831,1717591843695,-292.2198683,0.0002126,2]
[328597833,1717591843704,-292.2198683,0.00021278,2]
[328597835,1717591843715,-292.2198683,0.00021378,2]
[328597838,1717591843724,-175.3,0.0002139,5]
[328597841,1717591843734,-154.018,0.00021648,2]
[328597844,1717591843743,-789.10681215,0.00021898,2]
[328597847,1717591843753,-216.98421373,0.00021901,2]
[328597850,1717591843762,-202.67,0.00021917,2]
[328597853,1717591843771,-500.0,0.00021917,2]
[328597856,1717591843781,-500.0,0.00021917,2]
[328597858,1717591843790,-500.0,0.00021917,2]
[328597860,1717591843799,-500.0,0.00021917,2]
[328597862,1717591843809,-500.0,0.00021917,2]
[328597864,1717591843818,-159.1,0.00021917,2]
[328597866,1717591843827,-500.0,0.00021917,2]
[328597869,1717591843836,-800.72,0.00021917,2]
[328597872,1717591843845,-500.0,0.00021917,2]
[328597875,1717591843855,-500.0,0.00021917,2]
[328597877,1717591843864,-500.0,0.00021917,2]
[328597880,1717591843873,-500.0,0.00021917,2]
[328597884,1717591843882,-883.33,0.00021917,2]